Cogmind - Beta 13 @@@ ROGUE MODE // 2024.04.18 @ 15:23:51 Player: Arcvasti Result: Destroyed by S-27 Virus with Autogun Performance ------------- Evolutions (3) 1500 Regions Visited (8) 1600 Robots Destroyed (42) 210 Value Destroyed (1228) 1228 Prototype IDs (0) 0 Alien Tech Used (0) 0 Bonus (545) 545 TOTAL SCORE: 5083 Bonus ------- High Alert Combat Kills 24 Follower Combat Kills 21 Entered Garrisons 200 Acquired ECA 300 Cogmind --------- Core Integrity 0/700 Matter 260/300 Energy 290/290 System Corruption 3% Temperature Cool (48) Movement Rolling (95) Ox1 Location -7/Lower Caves Parts ------- > --- POWER (1) -------- Improved Deuterium Engine > --- PROPULSION (3) --- Wheel > --- UTILITY (7) ------ Structural Scanner Advanced Terrain Scan Processor Encrypted Comm Array Core Analyzer Core Analyzer Core Analyzer Core Analyzer > --- WEAPON (2) ------- Backup Laser I Heavy Laser > --- INVENTORY (5) ---- Light Ion Engine Micro Nuclear Core VTOL Module Light EM Pulse Cannon Peak State ------------ > --- POWER ------------ Ion Engine > --- PROPULSION ------- VTOL Module Field Propulsion Array > --- UTILITY ---------- Advanced Power Amplifier Visual Processing Unit Improved Signal Interpreter Advanced Terrain Scan Processor Seismic Detector Nanoactuators > --- WEAPON ----------- Powered Hammer > --- INVENTORY -------- Relay Coupler [Grunt] Relay Coupler [Duelist] [Rating: 45] Favorites ----------- Power Ion Engine Engine Ion Engine Propulsion Aluminum Leg Leg Aluminum Leg Wheel Compact Wheel Hover Unit Improved Hover Unit Flight Unit Xenon Bombardment Thruster Utility Seismic Detector Device Seismic Detector Storage Small Storage Unit Processor Core Analyzer Weapon Grenade Launcher Energy Gun Heavy Laser Ballistic Gun Assault Rifle Launcher Grenade Launcher Impact Weapon Mace Slashing Weapon Greatsword Build | -11 -10 -10 -9 -8 -7 -7 -7 -7 ------- Run | Yrd Mat Min Mat Mat Fac Gar Fac Low Slots Evolved 6 | . . . 2 2 2 . . . Power . | . . . . . . . . . Propulsion 1 | . . . . 1 . . . . Utility 5 | . . . 2 1 2 . . . Weapon . | . . . . . . . . . Parts Attached 63 | 6 3 3 8 8 8 8 18 1 Power 7 | 1 1 . 1 . 1 1 2 . Engine 7 | 1 1 . 1 . 1 1 2 . Core . | . . . . . . . . . Reactor . | . . . . . . . . . Propulsion 19 | 2 . 2 5 3 1 3 3 . Treads . | . . . . . . . . . Leg 4 | . . 2 2 . . . . . Wheel 7 | 2 . . 2 . . . 3 . Hover 1 | . . . 1 . . . . . Flight 7 | . . . . 3 1 3 . . Utility 24 | 1 1 . 1 3 4 2 11 1 Device 12 | 1 1 . . 2 3 2 2 1 Storage 1 | . . . . . . . 1 . Processor 11 | . . . 1 1 1 . 8 . Hackware . | . . . . . . . . . Protection . | . . . . . . . . . Artifact . | . . . . . . . . . Weapon 13 | 2 1 1 1 2 2 2 2 . Energy Gun 3 | 1 . . . . . . 2 . Energy Cannon . | . . . . . . . . . Ballistic Gun 1 | 1 . . . . . . . . Ballistic Cannon . | . . . . . . . . . Launcher 4 | . 1 1 . 1 . 1 . . Special Weapon . | . . . . . . . . . Impact Weapon 3 | . . . 1 1 . 1 . . Slashing Weapon 2 | . . . . . 2 . . . Piercing Weapon . | . . . . . . . . . Special Melee Weapon . | . . . . . . . . . Unidentified Prototypes . | . . . . . . . . . Parts Lost 18 | . . 1 . 1 . 13 3 . Power 2 | . . . . . . 2 . . Propulsion 8 | . . 1 . . . 5 2 . Utility 5 | . . . . 1 . 4 . . Weapon 3 | . . . . . . 2 1 . Highest Loss Streak 9 | . . 1 . 1 . 9 2 . To Critical Strikes . | . . . . . . . . . Average Slot Usage (%) 84 | . 99 99 76 86 91 68 66 82 Engine 9 | . 14 14 11 9 7 3 6 7 Leg 7 | . . 24 17 . . . . . Wheel 6 | . 28 3 3 4 . . 15 7 Flight 6 | . . . . 17 23 13 . . Device 22 | . 27 28 22 25 29 21 2 13 Processor 12 | . . . 3 12 18 21 28 38 Energy Gun 3 | . 10 . . . . . 11 15 Ballistic Gun 1 | . 14 1 . . . . . . Launcher 9 | . 3 26 18 7 3 . . . Impact Weapon 1 | . . . 1 9 2 3 . . Naked Turns 76 | . . . . . . 34 42 . Heaviest Build 17 | 10 12 14 14 12 14 14 17 16 Greatest Support 42 | 32 32 32 24 24 16 19 42 10 Greatest Overweight (x) 4 | . . . 4 3 . 1 2 1 Average Overweight (x) . | . . . . . . . . 1 Largest Inventory Capacity 8 | 5 5 5 5 5 5 5 8 5 Average Capacity 5 | 5 5 5 5 5 5 5 5 5 Most Carried 7 | 4 5 5 5 5 5 5 7 5 Average Carried 4 | . 3 4 4 4 4 3 3 4 Final Capacity 5 | 5 5 5 5 5 5 5 5 5 Final Carried 5 | . 4 5 5 4 5 2 4 4 Class Distribution -------------------- 63% | Mutant 23% | Scout 7% | Scavenger-Mutant Dominant Class ---------------- Mutant | -10/Materials Mutant | -10/Mines Mutant | -9/Materials Scout | -8/Materials Scout | -7/Factory Mutant | -7/Garrison Scavenger-Mutant | -7/Factory Mutant | -7/Lower Caves Resources | -11 -10 -10 -9 -8 -7 -7 -7 -7 ----------- Run | Yrd Mat Min Mat Mat Fac Gar Fac Low Matter Collected 1181 | 275 64 91 120 284 86 120 141 . Remotely . | . . . . . . . . . Salvage Created 1109 | 84 91 70 173 141 . 229 321 . Parts 72 | 2 4 7 19 9 . 13 18 . Haulers Intercepted 1 | . . . 1 . . . . . Recyclers Shooed 1 | . . . . . . . 1 . Parts Field Recycled . | . . . . . . . . . Retrieved Matter . | . . . . . . . . . Parts Self-Destructed . | . . . . . . . . . Prevented . | . . . . . . . . . Kills | -11 -10 -10 -9 -8 -7 -7 -7 -7 ------- Run | Yrd Mat Min Mat Mat Fac Gar Fac Low Combat Hostiles Destroyed 28 | . 2 5 5 6 . 7 3 . Melee 3 | . . . . 1 . 2 . . Guns 5 | . 2 . . . . . 3 . AOE 16 | . . 5 5 3 . 3 . . Classes Destroyed 10 | 2 1 1 4 1 . 1 . . Worker 3 | . . . 2 1 . . . . Builder 4 | . . . 3 . . . 1 . Tunneler 2 | 1 . . . . . . 1 . Hauler 1 | . . . 1 . . . . . Recycler 3 | 1 . . . . . . 2 . Watcher 1 | . . . . 1 . . . . Swarmer 12 | . . 3 . 4 . 3 2 . Grunt 9 | . 2 2 3 . . 2 . . Sentry 6 | . . . 2 2 . 1 1 . Hunter 1 | . . . . . . 1 . . Best Kill Streak 9 | 2 1 3 9 4 . 4 2 . Combat Bots Only 4 | . 1 3 3 3 . 4 2 . Max Kills in Single Turn 2 | 1 1 2 2 2 . 1 1 . Gunslinging . | . . . . . . . . . Exploded 2 | . . 2 1 2 . 1 . . Melee 1 | . . . . 1 . 1 . . Uniques/NPCs Destroyed . | . . . . . . . . . Combat | -11 -10 -10 -9 -8 -7 -7 -7 -7 -------- Run | Yrd Mat Min Mat Mat Fac Gar Fac Low Hostile Shots Fired 329 | . 26 4 16 38 4 191 35 15 Missed 151 | . 5 . 6 23 2 96 16 3 Damage Taken 2329 | . 235 36 150 194 28 1273 235 178 Core 884 | . 59 8 47 60 . 557 74 79 Absorbed by Shields 27 | . . . . . . 27 . . Core Remaining (%) 87 | 100 . 73 88 89 . . . . Volleys Fired 71 | 5 19 3 15 4 . 3 19 3 Largest 2 | 2 2 2 2 1 . 1 2 2 Hottest 124 | 70 70 63 63 30 . 30 124 99 Shots Fired 116 | 10 38 4 25 4 . 3 26 6 Gun 80 | 10 38 . . . . . 26 6 Cannon . | . . . . . . . . . Launcher 36 | . . 4 25 4 . 3 . . Special . | . . . . . . . . . Kinetic 24 | 5 19 . . . . . . . Thermal 49 | 5 19 . . . . . 19 6 Explosive 36 | . . 4 25 4 . 3 . . Electromagnetic 7 | . . . . . . . 7 . Robot Hit Streak 7 | 7 5 2 5 7 . 1 4 1 Robot Miss Streak 7 | 1 7 1 1 1 . 1 3 3 Penetration Max . | . . . . . . . . . Secondary Targets 1 | . 1 . . . . . . . Max Gunslinging Chain 1 | . 1 . . . . . . . Shots Hit Robots 88 | 7 17 3 18 12 . 18 12 1 Core Hits 60 | 3 4 6 23 5 . 9 10 . Critical Kills . | . . . . . . . . . Critical Parts Destroyed 1 | . . . . . . 1 . . Critical Strikes 2 | . . . . . . 1 1 . Burn 1 | . . . . . . . 1 . Smash 1 | . . . . . . 1 . . Melee Attacks 46 | . . . 1 12 . 33 . . Impact 32 | . . . 1 12 . 19 . . Slashing 14 | . . . . . . 14 . . Piercing . | . . . . . . . . . Sneak Attacks 1 | . . . . . . 1 . . Combat Hostiles 1 | . . . . . . 1 . . Follow-up Attacks . | . . . . . . . . . Damage Inflicted 3393 | 86 225 294 947 590 . 1029 214 8 Guns 533 | 86 225 . . . . . 214 8 Cannons . | . . . . . . . . . Explosions 1853 | . . 279 947 364 . 263 . . Melee 992 | . . . . 226 . 766 . . Ramming 15 | . . 15 . . . . . . Kinetic 148 | 36 112 . . . . . . . Thermal 363 | 50 113 . . . . . 192 8 Explosive 1853 | . . 279 947 364 . 263 . . Electromagnetic 22 | . . . . . . . 22 . Impact 649 | . . . . 226 . 423 . . Slashing 343 | . . . . . . 343 . . Piercing . | . . . . . . . . . Highest Corruption 3 | . . . . . . . 3 3 Average Corruption 2 | . . . . . . . 2 3 Corruption Purged . | . . . . . . . . . Corruption Blocked . | . . . . . . . . . Effects 5 | . . . . . . . 3 2 Matter Fused 1 | . . . . . . . 1 . Heat Flow Errors 1 | . . . . . . . . 1 Parts Rejected 1 | . . . . . . . 1 . Data Loss (minor) 1 | . . . . . . . 1 . Data Loss (major) 1 | . . . . . . . . 1 Overload Shots . | . . . . . . . . . Overflow Damage 247 | . . . 38 93 . 116 . . Projectiles . | . . . . . . . . . Explosions 155 | . . . 38 67 . 50 . . Melee 92 | . . . . 26 . 66 . . Knockbacks 1 | . . . . . . 1 . . Impact 1 | . . . . . . 1 . . Kinetic . | . . . . . . . . . Secondary . | . . . . . . . . . Self-Inflicted Damage 87 | . . . . . . 87 . . Shots 3 | . . . . . . 3 . . Rammed . | . . . . . . . . . Targets Rammed 3 | . . 3 . . . . . . Kicked 3 | . . 3 . . . . . . Crushed . | . . . . . . . . . Highest Temperature 237 | 18 237 9 25 . . 7 108 205 Average Temperature 59 | 9 105 8 10 . . 7 31 68 Received Heat Transfer 456 | . 126 6 87 36 . 189 12 . Siege Activations . | . . . . . . . . . Robots Corrupted . | . . . . . . . . . Combat Hostiles . | . . . . . . . . . Parts Fried 6 | . . . . 4 . 2 . . Impact Corruptions 6 | . . . . 3 . 3 . . Robots Melted . | . . . . . . . . . Combat Hostiles . | . . . . . . . . . Parts Melted 3 | 1 . . . . . . 2 . Heat Transferred 962 | 148 333 . . . . . 444 37 Parts Sabotaged . | . . . . . . . . . Parts Stolen . | . . . . . . . . . Parts Stripped . | . . . . . . . . . Power Chain Reactions . | . . . . . . . . . Alert | -11 -10 -10 -9 -8 -7 -7 -7 -7 ------- Run | Yrd Mat Min Mat Mat Fac Gar Fac Low Peak Influence 530 | 10 56 293 373 404 106 530 434 . Initial 277 | . 6 21 35 157 91 74 277 . Average 184 | 2 32 131 202 225 103 269 345 . Maximum Alert Level 2 | . . 1 1 2 . 2 2 . Low Security (%) 56 | 100 100 64 46 57 100 33 . . Level 1 35 | . . 35 53 30 . 51 64 . Level 2 8 | . . . . 11 . 15 35 . Level 3 . | . . . . . . . . . Level 4 . | . . . . . . . . . Level 5 . | . . . . . . . . . High Security . | . . . . . . . . . Max Security . | . . . . . . . . . Squads Dispatched 8 | . 3 . . . 2 . 3 . Investigation 4 | . 2 . . . 1 . 1 . Extermination 1 | . . . . . 1 . . . Reinforcement 3 | . 1 . . . . . 2 . Assault . | . . . . . . . . . Garrison . | . . . . . . . . . Intercept . | . . . . . . . . . Searches Triggered . | . . . . . . . . . Construction Impeded . | . . . . . . . . . Haulers Reinforced . | . . . . . . . . . Active Scanning Responses . | . . . . . . . . . Cargo Convoy Interrupts . | . . . . . . . . . Stealth | -11 -10 -10 -9 -8 -7 -7 -7 -7 --------- Run | Yrd Mat Min Mat Mat Fac Gar Fac Low Distress Signals 1 | . . . 1 . . . . . Communications Jammed . | . . . . . . . . . Distress Signals . | . . . . . . . . . Times Spotted 73 | . 8 6 8 14 5 23 6 3 Peak Tracking Total 12 | . 4 3 4 7 5 12 2 3 Tactical Retreats 10 | . . 1 . 2 . 6 1 . Traps | -11 -10 -10 -9 -8 -7 -7 -7 -7 ------- Run | Yrd Mat Min Mat Mat Fac Gar Fac Low Traps Triggered 4 | . 1 . . . . 2 1 . Indirectly . | . . . . . . . . . Trap Hack Attempts . | . . . . . . . . . Triggered . | . . . . . . . . . Disarmed . | . . . . . . . . . Reprogrammed . | . . . . . . . . . Reused . | . . . . . . . . . Traps Extracted . | . . . . . . . . . Installed . | . . . . . . . . . Triggered . | . . . . . . . . . Machines | -11 -10 -10 -9 -8 -7 -7 -7 -7 ---------- Run | Yrd Mat Min Mat Mat Fac Gar Fac Low Machines Disabled 5 | . . 3 1 . . 1 . . Max in Single Turn 2 | . . 2 1 . . 1 . . Garrison Access 2 | . . . . 1 1 . . . Garrison Relay 1 | . . . . . . 1 . . Machines Repaired . | . . . . . . . . . Machines Dismantled . | . . . . . . . . . Machines Sabotaged . | . . . . . . . . . Overloaded Fab Kills . | . . . . . . . . . Hacking | -11 -10 -10 -9 -8 -7 -7 -7 -7 --------- Run | Yrd Mat Min Mat Mat Fac Gar Fac Low Machines Accessed 18 | . 2 . 2 5 5 2 2 . Terminals 10 | . 2 . 2 3 . 2 1 . Fabricators . | . . . . . . . . . Repair Stations 2 | . . . . . 1 . 1 . Recycling Units 1 | . . . . . 1 . . . Scanalyzers 2 | . . . . 1 1 . . . Garrison Access 3 | . . . . 1 2 . . . Total Hacks 56 | . 10 . 10 18 10 4 4 . Successful 30 | . 5 . 7 10 5 2 1 . Failed 26 | . 5 . 3 8 5 2 3 . Catastrophic 5 | . 3 . . 1 1 . . . Database Lockouts . | . . . . . . . . . Manual 11 | . 5 . 1 5 . . . . Terminals 40 | . 10 . 10 13 . 4 3 . Fabricators . | . . . . . . . . . Repair Stations 3 | . . . . . 2 . 1 . Recycling Units 1 | . . . . . 1 . . . Scanalyzers 7 | . . . . 3 4 . . . Garrison Access 5 | . . . . 2 3 . . . Terminal Hacks 20 | . 4 . 6 8 . 2 . . Record 8 | . 1 . 4 3 . . . . Emergency Access Points 1 | . . . . . . 1 . . Alert Level 1 | . . . . 1 . . . . Unreport Threat 2 | . . . . 2 . . . . Locate Traps 2 | . 1 . . 1 . . . . Dispatch Records 1 | . 1 . . . . . . . Transport Status 1 | . . . 1 . . . . . Reinforcement Status 1 | . . . 1 . . . . . Zone Layout 2 | . 1 . . 1 . . . . Garrison Registry 1 | . . . . . . 1 . . Fabricator Hacks . | . . . . . . . . . Repair Station Hacks 2 | . . . . . 1 . 1 . Scan Component 1 | . . . . . 1 . . . Refit 1 | . . . . . . . 1 . Recycling Unit Hacks . | . . . . . . . . . Scanalyzer 3 | . . . . 1 2 . . . Insert Component 2 | . . . . 1 1 . . . Analyze 1 | . . . . . 1 . . . Garrison Access Hacks 3 | . . . . 1 2 . . . Unlock Access 1 | . . . . . 1 . . . Seal Access 2 | . . . . 1 1 . . . Unauthorized Hacks 2 | . 1 . 1 . . . . . Terminals 2 | . 1 . 1 . . . . . Botnet 2 | . 1 . 1 . . . . . Fabricators . | . . . . . . . . . Repair Stations . | . . . . . . . . . Recycling Units . | . . . . . . . . . Scanalyzers . | . . . . . . . . . Garrison Access . | . . . . . . . . . Data Cores Recovered . | . . . . . . . . . Used . | . . . . . . . . . Hacking Detections 15 | . 2 . 2 4 4 2 1 . Full Trace Events 5 | . 1 . 1 1 1 . 1 . Feedback Events . | . . . . . . . . . Feedback Blocked . | . . . . . . . . . Robot Schematics Acquired . | . . . . . . . . . Robots Built . | . . . . . . . . . Authchips . | . . . . . . . . . Time . | . . . . . . . . . Total Robot Build Rating . | . . . . . . . . . Part Schematics Acquired 1 | . . . . . 1 . . . Parts Built . | . . . . . . . . . Authchips . | . . . . . . . . . Time . | . . . . . . . . . Total Part Build Rating . | . . . . . . . . . Parts Repaired . | . . . . . . . . . Time . | . . . . . . . . . Parts Recycled . | . . . . . . . . . Recycled Matter . | . . . . . . . . . Retrieved Matter . | . . . . . . . . . Retrieved Components . | . . . . . . . . . Parts Scanalyzed 1 | . . . . 1 . . . . Part Schematics Acquired 1 | . . . . . 1 . . . Parts Damaged . | . . . . . . . . . Bothacking | -11 -10 -10 -9 -8 -7 -7 -7 -7 ------------ Run | Yrd Mat Min Mat Mat Fac Gar Fac Low Used RIF Installer . | . . . . . . . . . Robots Hacked . | . . . . . . . . . Non-combat . | . . . . . . . . . Combat . | . . . . . . . . . Robot Hacks Applied . | . . . . . . . . . Relay Couplers Released 3 | . . . . . . 3 . . Machine Destruction 3 | . . . . . . 3 . . Fabnet Peak Effective % . | . . . . . . . . . Robots Rewired . | . . . . . . . . . Allies Hacked . | . . . . . . . . . Hacks Repelled . | . . . . . . . . . Allies | -11 -10 -10 -9 -8 -7 -7 -7 -7 -------- Run | Yrd Mat Min Mat Mat Fac Gar Fac Low Total Allies 1 | . . 1 . . . . . . Largest Group 1 | . . 1 . . . . . . Highest-Rated Group 31 | . . 31 . . . . . . Highest-Rated Ally 31 | . . 31 . . . . . . Total Orders . | . . . . . . . . . Ally Attacks 7 | . . 7 . . . . . . Total Damage 128 | . . 128 . . . . . . Kills 3 | . . 3 . . . . . . Allies Corrupted . | . . . . . . . . . Allies Melted . | . . . . . . . . . Intel | -11 -10 -10 -9 -8 -7 -7 -7 -7 ------- Run | Yrd Mat Min Mat Mat Fac Gar Fac Low Robot Analysis Total . | . . . . . . . . . Derelict Logs Recovered 2 | . . 2 . . . . . . Drone Launches . | . . . . . . . . . Drone Recoveries . | . . . . . . . . . Exploration | -11 -10 -10 -9 -8 -7 -7 -7 -7 ------------- Run | Yrd Mat Min Mat Mat Fac Gar Fac Low Turns Passed 3153 | 62 316 779 290 320 342 464 442 138 Spaces Moved 3173 | 43 234 618 191 492 394 673 402 126 Core 210 | 14 . . 5 1 . 80 110 . Treads . | . . . . . . . . . Legs 694 | . . 547 147 . . . . . Wheels 863 | 29 234 71 39 72 . . 292 126 Hover . | . . . . . . . . . Flight 1406 | . . . . 419 394 593 . . Fastest Speed 34 | 50 100 100 90 34 34 34 50 95 Average Speed 72 | 83 100 117 117 43 34 39 87 95 Slowest Speed 250 | 100 100 120 250 200 34 115 150 95 Overloaded Moves . | . . . . . . . . . Propulsion Burnouts . | . . . . . . . . . Robots Hopped . | . . . . . . . . . Cave-ins Triggered 1 | . . . . . . 1 . . Exploration Rate (%) 37 | 4 48 96 26 54 11 65 10 21 Regions Visited 8 Branch Regions 2 Pre-discovered Areas 1 | . . . . . . . . 1 Known Exits Taken 3 | . . . 1 1 1 . . . Unknown Exits Taken 4 | 1 1 1 . . . . 1 . Scrap Searched 1 | . . 1 . . . . . . Spaces Dug 2 | . . . . . . 2 . . Terrain Destroyed 193 | . . 32 98 35 . 28 . . Melee 2 | . . . . . . 2 . . Projectile . | . . . . . . . . . AOE 191 | . . 32 98 35 . 26 . . Terrain Rammed . | . . . . . . . . . Walls Destroyed . | . . . . . . . . . Machines Disabled . | . . . . . . . . . Actions | -11 -10 -10 -9 -8 -7 -7 -7 -7 --------- Run | Yrd Mat Min Mat Mat Fac Gar Fac Low Total 3834 | 59 277 666 234 574 605 816 464 139 Wait 309 | . 15 34 . 42 183 27 . 8 Move 3158 | 42 233 617 190 491 393 665 401 126 Hop . | . . . . . . . . . Pick Up 76 | 6 6 4 10 10 11 6 22 1 Fast Attach . | . . . . . . . . . Attach 52 | 6 2 1 7 8 6 7 14 1 Detach 2 | . . . . 1 1 . . . Swap 11 | . 1 2 1 . 2 1 4 . Drop 34 | . 1 2 10 6 9 2 4 . Fire 71 | 5 19 3 15 4 . 3 19 3 Melee 46 | . . . 1 12 . 33 . . Ram . | . . . . . . . . . Kick 3 | . . 3 . . . . . . Crush . | . . . . . . . . . Escape Stasis 72 | . . . . . . 72 . . Rewire . | . . . . . . . . . Trap . | . . . . . . . . . Miscellaneous . | . . . . . . . . . Route ------- -11/Scrapyard -10/Materials (discovered 3 exits: *Mat x2 / [*Min]) -10/Mines (discovered 2 exits: *Mat x2) -9/Materials (discovered 3 exits: *Mat x2 / Min) -8/Materials -7/Factory -7/Garrison (discovered 3 exits: *Fac x3) -7/Factory -7/Lower Caves History --------- Turn | Location | Event 7 | -11/Scrapyard | Discovered new exit (range 15) 63 | -11/Scrapyard | Entered Materials 277 | -10/Materials | Discovered new exit (range 19) 302 | -10/Materials | Build established: Mutant 334 | -10/Materials | Discovered new exit (range 15) 364 | -10/Materials | Discovered new exit (range 15) 379 | -10/Materials | Entered Mines 404 | -10/Mines | Received a Rocket Launcher from a helpful Derelict 479 | -10/Mines | Learned 8 Materials zone layouts 606 | -10/Mines | Received a Mining Laser from a helpful Derelict 608 | -10/Mines | Discovered new exit (range 12) 871 | -10/Mines | Learned location of 1 exit from Materials 881 | -10/Mines | Discovered new exit (range 9) 958 | -10/Mines | Found a hidden stash of uninstalled traps 1158 | -10/Mines | Entered Materials 1158 | -9/Materials | Evolved 2 slots: Utility x2 1159 | -9/Materials | Identified exit to Materials 1160 | -9/Materials | Identified exit to Mines 1448 | -9/Materials | Entered another Materials area 1448 | -8/Materials | Evolved 2 slots: Propulsion x1, Utility x1 1761 | -8/Materials | Discovered new exit (range 17) 1767 | -8/Materials | Identified exit to Factory 1768 | -8/Materials | Entered Factory 1768 | -7/Factory | Evolved 2 slots: Utility x2 1861 | -7/Factory | Build established: Scout 2110 | -7/Factory | Identified exit to Garrison 2110 | -7/Factory | Entered Garrison 2186 | -7/Garrison | Triggered checkpoint 2230 | -7/Garrison | Garrison Relay disabled 2298 | -7/Garrison | Crushed by falling debris 2325 | -7/Garrison | Discovered new exit (range 9) 2326 | -7/Garrison | Lost 9 parts (1p3n3u2w) 2327 | -7/Garrison | Identified exit to Factory 2357 | -7/Garrison | Spotted B-75 Beast 2425 | -7/Garrison | Discovered exit to Factory (range 63) 2425 | -7/Garrison | Discovered exit to Factory (range 21) 2425 | -7/Garrison | Discovered exit to Factory (range 76) 2440 | -7/Garrison | Triggered checkpoint 2456 | -7/Garrison | Attempted to access garrison exit controls, blocked by remote lockdown 2494 | -7/Garrison | Triggered checkpoint 2500 | -7/Garrison | Triggered checkpoint 2526 | -7/Garrison | Attempted to access garrison exit controls, blocked by remote lockdown 2533 | -7/Garrison | Spotted B-75 Beast 2533 | -7/Garrison | Spotted B-75 Beast 2537 | -7/Garrison | Core integrity fell below 50% 2540 | -7/Garrison | Released all parts (6) 2574 | -7/Garrison | Entered Factory 2584 | -7/Factory | Build established: Mutant 2728 | -7/Factory | Core integrity fell below 20% 2885 | -7/Factory | Discovered new exit (range 16) 3016 | -7/Factory | Entered Lower Caves 3022 | -7/Lower Caves | Met a Warlord Commander 3023 | -7/Lower Caves | Learned location of Warlord (-4) 3024 | -7/Lower Caves | Warlord Commander delivered Encrypted Comm Array 3037 | -7/Lower Caves | Found Encrypted Comm Array 3154 | -7/Lower Caves | Destroyed by S-27 Virus with Autogun Last Messages --------------- MAIN.C is less willing and able to dispatch units to engage us in outlying regions." World map updated: -4/Warlord. 03024_ BA-329(g): "Take this and I'm confident we can do great things together." 03025_ BA-329(g): "Keep it up and the more chaos you cause inside garrisons, the more forces we can redirect for attacks on primary facilities." 03026_ BA-329(g): "To be clear, the most effective way to help us is by destroying RIF Installers and Garrison Relays, and generally compromising garrison interiors. Triggering DSF sterilization is also a great help." 03027_ BA-329(g): "WARLORD FOREVER!" 03027_ BA-329(g) slips back into the shadows. 03037_ Acquired Encrypted Comm Array. 03045_ System corrupted: Substantial component data lost. 03109_ System corrupted: Heat flow error (+232). Map ----- +----------------------------------------------------+ | ?????????????????????????????????????????????????? | | ?????????????????????????????????????????????????? | | ?????????????????????????????????????????????????? | | ?????????????????????????????????????????????????? | | ?????????????????????????????????????????????????? | | ?????????????????????????????????????????????????? | | ??????????????????????######????????############## | | ????????????????????########??????################ | | ??????????????????? ### ????#### # # # # | | ???????????????## ## ?????### ? # ## | | ???????????????## ???? ?? | | ?????????????? ???? ??## # | | ??????????????? ?????## #?## # # | | ???????????????# ??##### ##### # # # | | ???????????????## ??##### ##### ## # | | ???????????????## ?? #### ## | | ?????????????????? ???? ### ### | | ??????????????????? ###???## ## ## | | ???????????????????? ###???## ## ## | | ????????????????????## ##?#### ######## ## | | ????????????????????### s ##?#### ######### ## | | ????????????????????###ss ##?## ###???#### | | ????????????????????### ##### ###???#### | | ????????????????????## ##### ########### # | | ????????????????????## ##### ############# | | ????????????????????### @ ###### ## ######## | | ????????????????????#### ##### #####?# | | ?????????????????????### ### ####### | | ?????????????????????## ### #### | | ?????????????????????## ## ### | | ?????????????????????### ### ## ## | | ?????????????????????#### #### ## ## | | ??????????????????????#### ##### ## ### | | ???????????????????????### ###### ### ## | | ????????????????????????## ##?######## | | ????????????????????????## ##??###### ### | | ????????????????????????## ##??????## #### | | ???????????????????????? ##??????## #### | | ???????????????????????? ##?????### ?### | | ????????????????????????######????### ?## | | ????????????????????????######????## | | ??????????????????????????????????### ## | | ??????????????????????????????????####### | | ???????????????????????????????????####### ## | | ???????????????????????????????????????########### | | ????????????????????????????????????????########## | | ?????????????????????????????????????????????????? | | ?????????????????????????????????????????????????? | | ?????????????????????????????????????????????????? | | ?????????????????????????????????????????????????? | +----------------------------------------------------+ Best States ------------- Heat Dissipation 34 Energy Generation 16 Energy Capacity 290 Matter Stores 300 Matter Capacity 300 Sight Range 18 Robot Scan Range 15 Terrain Scan Range 16 Terrain Scan Density 210 Power Amplification 30 Melee Speed Boost 30 Evasion (%) 71 Core Analysis 9 Item Schematics ----------------- Xenon Bombardment Thruster | -7/Factory | Scanalyzed Robot Schematics ------------------ None Fabricated ------------ Nothing Alien Tech Used ----------------- None Achievements -------------- Loot Pinata Omniscient Cartographer Oops Storm Trooper Challenges ------------ None Game ------ Seed AccelerationRecoilDiverter Manual? 0 Play Time 00:51:41 Cumulative 4.3 hours Start 2024.04.16 @ 15:19:43 End 2024.04.18 @ 15:23:51 Sessions 3 Manual Loads 0 Difficulty Rogue Special Mode None Game No. 4 Rogue 4 Adventurer 0 Explorer 0 Win Type - Total 0 Types 0/0/0/0/0/0/0/0/0 Lore% 4 Gallery% 10 Achievement% 14 Wizard Run 0 Options --------- Layout 1 ASCII 0 Keyboard 0 Movement Numpad Keybinds 0 Fullscreen 1 Font 24/Smallcaps Map View 50x35 Zoom Use 0% Tactical HUD 1 Map Filters NONE Filters NONE Steam 0 RUN: 6fc2ea94-505e-44f4-a2d5-982a22b2ab4d